bitfinex/quotes_SOLUSD_20250130
["timestamp","ask_amount","ask_price","bid_price","bid_amount"]
[1738208861566,0.03,239.37,239.34,12.58046656]
[1738208861771,0.03,239.37,239.33,12.58046656]
[1738208861967,0.03,239.37,239.34,12.58046656]
[1738208862202,0.03,239.37,239.33,12.58046656]
[1738208862496,0.03,239.37,239.31,16.75906656]
[1738208862698,12.58046656,239.35,239.3,3.1]
[1738208862877,12.58046656,239.35,239.3,7.2788]
[1738208863074,12.58046656,239.36,239.3,7.2788]
[1738208863498,12.58046656,239.35,239.3,7.2788]
[1738208863675,12.58046656,239.36,239.3,7.2788]
[1738208863897,12.58046656,239.35,239.3,7.2788]
[1738208864413,12.58046656,239.35,239.3,3.1]
[1738208865010,12.58046656,239.31,239.3,3.1]
[1738208867008,12.58046656,239.31,239.24,1.6208]
[1738208867198,12.58046656,239.26,239.24,1.6208]
[1738208867796,12.58046656,239.27,239.24,5.8006]
[1738208868088,12.58046656,239.29,239.24,5.8006]
[1738208868283,12.58046656,239.3,239.24,5.8006]
[1738208868909,12.58046656,239.35,239.27,12.58046656]
[1738208869305,12.58046656,239.36,239.29,12.58046656]
[1738208869502,12.61046656,239.37,239.3,12.58046656]
[1738208869696,0.03,239.37,239.3,12.58046656]
[1738208869899,0.03,239.37,239.31,6.2625]
[1738208870110,0.03,239.37,239.32,4.1785]
[1738208870417,0.03,239.37,239.36,14.19996656]
[1738208870591,0.03,239.41,239.36,14.19996656]
[1738208870914,0.03,239.41,239.4,12.58046656]
[1738208871899,0.03,239.41,239.36,34.19996656]
[1738208872209,12.58046656,239.39,239.36,1.6195]
[1738208872512,12.61046656,239.41,239.36,1.6195]
[1738208872713,20.14645606,239.41,239.36,1.6195]
[1738208872918,20.11645606,239.39,239.36,1.6195]
[1738208873521,20.11645606,239.4,239.36,1.6195]
[1738208873816,20.14645606,239.41,239.36,1.6195]
[1738208874130,0.03,239.41,239.36,25.91365606]
[1738208875214,0.03,239.41,239.39,40.11645606]
[1738208875791,0.03,239.41,239.39,20.0]
[1738208875995,0.03,239.41,239.38,4.1773]
[1738208876313,0.03,239.41,239.38,24.29375606]
[1738208876815,0.03,239.41,239.4,20.0]
[1738208877033,0.03,239.41,239.4,40.11645606]
[1738208877614,0.03,239.41,239.4,64.14432006]
[1738208877820,0.03,239.41,239.4,64.39530006]
[1738208878116,0.03,239.41,239.4,68.57240006]
[1738208878315,0.03,239.41,239.4,44.29355606]
[1738208879903,0.03,239.41,239.4,24.1771]
[1738208880128,0.03,239.41,239.4,4.1771]
[1738208880627,0.03,239.41,239.4,44.29355606]
[1738208880795,0.03,239.41,239.4,68.57240006]
[1738208881299,0.03,239.41,239.4,4.1771]
[1738208882127,0.03,239.41,239.38,20.11645606]
[1738208882309,0.03,239.41,239.39,3.1]
[1738208882542,0.03,239.41,239.4,20.11645606]
[1738208882822,0.03,239.41,239.4,48.32142006]
[1738208883129,20.11645606,239.54,239.43,6.5633]
[1738208883306,20.11645606,239.54,239.46,20.11645606]
[1738208883709,0.03,239.55,239.51,20.11645606]
[1738208883908,0.03,239.55,239.49,20.11645606]
[1738208884522,20.14645606,239.55,239.48,21.66815606]
[1738208884716,0.03,239.55,239.49,20.11645606]
[1738208884918,0.03,239.55,239.48,1.5517]
[1738208885101,20.11645606,239.54,239.48,5.7272]
[1738208885300,0.03,239.55,239.48,5.7272]
[1738208885301,0.03,239.55,239.51,20.11645606]
[1738208885521,0.03,239.55,239.52,3.12]
[1738208885720,20.11645606,239.53,239.52,3.12]
[1738208885898,20.11645606,239.54,239.52,3.12]
[1738208886302,20.14645606,239.55,239.52,3.12]
[1738208886702,0.03,239.55,239.52,3.12]
[1738208886923,20.11645606,239.53,239.52,3.12]
[1738208888133,0.03,239.55,239.52,3.12]
[1738208888523,0.03,239.55,239.52,7.295]
[1738208888724,0.03,239.55,239.52,27.41145606]
[1738208888929,0.03,239.55,239.54,20.24194606]
[1738208889636,0.03,239.55,239.54,26.48424606]
[1738208890216,20.11645606,239.65,239.55,24.278844]
[1738208890418,20.11645606,239.65,239.54,30.65884606]
[1738208890419,20.11645606,239.63,239.56,20.11645606]
[1738208890606,20.11645606,239.62,239.54,30.53335606]
[1738208891408,20.11645606,239.58,239.54,10.4169]
[1738208891615,20.11645606,239.59,239.54,10.4169]
[1738208892111,20.11645606,239.58,239.54,10.4169]
[1738208892307,20.11645606,239.55,239.52,7.2948]
[1738208892515,20.11645606,239.54,239.52,3.12]
[1738208892752,20.11645606,239.53,239.52,3.12]
[1738208892910,4.1733,239.62,239.52,3.12]
[1738208892911,20.11645606,239.54,239.52,3.12]
[1738208893226,4.1733,239.62,239.52,3.12]
[1738208893227,20.11645606,239.53,239.52,3.12]
[1738208893610,20.11645606,239.54,239.52,3.12]
[1738208894235,20.11645606,239.53,239.52,3.12]
[1738208894537,20.11645606,239.57,239.52,7.2948]
[1738208894839,20.11645606,239.6,239.53,20.11645606]
[1738208895239,0.03,239.55,239.52,27.41125606]
[1738208895448,0.03,239.55,239.53,20.11645606]
[1738208895813,0.03,239.55,239.52,7.2948]
[1738208896119,0.03,239.55,239.52,27.41125606]
[1738208896715,0.03,239.55,239.53,20.11645606]
[1738208897033,0.03,239.55,239.54,4.1746]
[1738208897736,0.03,239.55,239.52,7.295]
[1738208898324,0.03,239.55,239.53,20.11645606]
[1738208898738,0.03,239.55,239.52,27.41145606]
[1738208898936,0.03,239.55,239.53,20.11645606]
[1738208899845,0.03,239.55,239.54,4.1746]
[1738208900937,0.03,239.55,239.54,24.41654606]
[1738208901918,0.03,239.55,239.54,48.56990006]
[1738208902227,0.03,239.55,239.54,54.64660006]
[1738208903035,0.03,239.55,239.54,30.49324606]
[1738208903554,0.03,239.55,239.54,54.64660006]
[1738208904237,0.03,239.55,239.54,30.49324606]
[1738208904633,0.03,239.55,239.54,26.04710137]
[1738208905448,0.03,239.55,239.54,25.92161137]
[1738208906043,0.03,239.55,239.54,13.3713]
[1738208906244,0.03,239.55,239.54,4.1746]
[1738208906549,0.03,239.55,239.54,12.55031137]
[1738208907661,0.03,239.55,239.53,3.12]
[1738208908151,0.03,239.55,239.52,0.063]
[1738208908361,0.03,239.55,239.52,4.2379]
[1738208908642,0.03,239.55,239.52,16.78821137]
[1738208908844,0.03,239.55,239.52,16.72348465]
[1738208909237,0.03,239.55,239.53,12.55031137]
[1738208909630,0.03,239.55,239.54,12.55031137]
[1738208909828,0.03,239.55,239.54,12.67580137]
[1738208910252,0.03,239.55,239.54,16.85040137]
[1738208913253,47.77402926,239.73,239.66,20.0]
[1738208913431,47.77402926,239.73,239.71,12.55031137]
[1738208913633,47.77402926,239.73,239.72,12.67580137]
[1738208914031,47.77402926,239.73,239.72,12.55031137]
[1738208914358,47.77402926,239.73,239.72,16.72181137]
[1738208914545,47.77402926,239.73,239.67,15.1781]
[1738208914546,47.77402926,239.73,239.69,20.05866429]
[1738208914751,47.77402926,239.73,239.71,20.05866429]
[1738208915332,47.77402926,239.73,239.67,24.80586429]
[1738208915761,47.77402926,239.73,239.67,3.1]
[1738208915762,67.83269355,239.73,239.67,3.1]
[1738208915932,20.05866429,239.71,239.67,3.1]
[1738208916549,20.05866429,239.69,239.67,3.1]
[1738208917361,19.55866429,239.69,239.67,3.1]
[1738208918934,20.05866429,239.68,239.67,3.1]
[1738208919741,20.05866429,239.68,239.58,29.14986429]
[1738208920086,20.05866429,239.64,239.58,6.0312]
[1738208921235,20.05866429,239.66,239.58,30.26366429]
[1738208922153,20.05866429,239.66,239.58,26.08986429]
[1738208923661,20.05866429,239.66,239.58,30.26366429]
[1738208924250,20.05866429,239.66,239.59,20.05866429]
[1738208925351,20.05866429,239.66,239.57,23.11866429]
[1738208925862,20.05866429,239.66,239.57,27.29276429]
[1738208926171,20.05866429,239.66,239.59,20.05866429]
[1738208926876,24.23126429,239.66,239.57,27.29276429]
[1738208927173,20.05866429,239.58,239.54,0.063]
[1738208927350,20.05866429,239.56,239.54,0.063]
[1738208928758,20.05866429,239.55,239.54,0.063]
[1738208936387,20.05866429,239.56,239.54,0.063]
[1738208936884,20.05866429,239.55,239.54,0.063]
[1738208937459,20.05866429,239.56,239.54,0.063]
[1738208937668,20.05866429,239.59,239.54,0.063]
[1738208937883,20.05866429,239.6,239.54,0.063]
[1738208938075,20.05866429,239.6,239.54,4.2376]
[1738208938261,20.05866429,239.59,239.54,0.063]
[1738208938467,20.05866429,239.58,239.54,0.063]
[1738208938789,12.5563607,239.58,239.54,0.063]
[1738208939597,12.5563607,239.56,239.54,0.063]
[1738208939807,12.5563607,239.55,239.54,0.063]
[1738208941989,37.3332447,239.55,239.54,0.063]
[1738208942190,12.5563607,239.55,239.54,0.063]
[1738208943807,12.5563607,239.63,239.55,1.6554]
[1738208943992,29.61461361,239.64,239.57,12.5563607]
[1738208944678,12.5563607,239.63,239.56,12.5563607]
[1738208945598,17.05825291,239.64,239.58,12.5563607]
[1738208945801,29.61461361,239.64,239.56,23.1048607]
[1738208946106,12.5563607,239.63,239.56,23.1048607]
[1738208946803,17.05825291,239.64,239.57,24.25517295]
[1738208947109,37.13942586,239.64,239.57,24.25517295]
[1738208947607,20.08117295,239.58,239.56,6.3743]
[1738208947803,20.08117295,239.57,239.54,0.063]
[1738208948107,20.08117295,239.55,239.45,6.254]
[1738208948410,20.08117295,239.46,239.43,1.5914]
[1738208948583,20.08117295,239.46,239.43,1.0914]
[1738208949405,20.08117295,239.44,239.4,0.063]
[1738208951293,20.08117295,239.41,239.4,0.063]
[1738208952590,20.08117295,239.43,239.4,0.063]
[1738208953291,20.08117295,239.41,239.4,0.063]
[1738208954510,20.08117295,239.47,239.4,0.063]
[1738208954722,20.08117295,239.56,239.46,20.08117295]
[1738208954891,20.08117295,239.56,239.48,20.08117295]
[1738208955091,20.08117295,239.56,239.49,4.1755]
[1738208955291,20.08117295,239.58,239.5,20.08117295]
[1738208956198,20.08117295,239.6,239.5,20.08117295]
[1738208956402,20.08117295,239.62,239.54,20.08117295]
[1738208956610,17.05825291,239.64,239.56,20.08117295]
[1738208956611,37.13942586,239.64,239.56,20.08117295]
[1738208957200,37.13942586,239.64,239.56,24.25547295]
[1738208957392,20.08117295,239.62,239.56,4.1743]
[1738208958196,20.08117295,239.6,239.53,3.02]
[1738208958506,20.08117295,239.6,239.53,7.1947]
[1738208959692,20.08117295,239.62,239.54,20.08117295]
[1738208960008,17.05825291,239.64,239.58,20.08117295]
[1738208961220,17.05825291,239.64,239.6,20.08117295]
[1738208961799,17.05825291,239.64,239.61,4.1734]
[1738208963808,17.05825291,239.64,239.54,1.6091]
[1738208963809,20.08117295,239.62,239.54,1.6091]
[1738208964004,20.08117295,239.59,239.54,1.6091]
[1738208964320,20.08117295,239.59,239.55,4.1744]
[1738208964518,20.08117295,239.61,239.55,4.1744]
[1738208965819,20.08117295,239.61,239.54,21.69027295]
[1738208966113,20.08117295,239.61,239.54,25.86487295]
[1738208966921,4.1736,239.6,239.52,20.08117295]
[1738208967126,20.08117295,239.57,239.48,24.25687295]
[1738208967833,20.08117295,239.63,239.55,4.1744]
[1738208968128,17.05825291,239.64,239.58,20.08117295]
[1738208968129,0.03,239.62,239.58,20.08117295]
[1738208968307,0.03,239.62,239.61,7.6412]
[1738208968507,0.03,239.62,239.61,10.6612]
[1738208968710,0.03,239.62,239.61,11.28702134]
[1738208969317,0.03,239.62,239.61,11.41251134]
[1738208969544,0.03,239.69,239.62,0.25098]
[1738208969829,0.03,239.69,239.68,20.08117295]
[1738208970043,0.03,239.69,239.66,20.08117295]
[1738208970524,0.03,239.69,239.68,20.08117295]
[1738208974522,0.03,239.69,239.66,20.08117295]
[1738208974832,0.03,239.69,239.64,20.08117295]
[1738208975630,20.08117295,239.68,239.62,3.02]
[1738208975934,20.08117295,239.68,239.6,24.25467295]
[1738208976148,0.03,239.69,239.64,20.08117295]
[1738208976514,0.03,239.69,239.65,4.1727]
[1738208977511,0.03,239.69,239.63,4.1729]
[1738208977718,0.03,239.69,239.63,3.02]
[1738208978107,20.08117295,239.68,239.63,3.02]
[1738208978331,20.08117295,239.68,239.6,23.10117295]
[1738208978515,20.08117295,239.66,239.59,4.1737]
[1738208978718,20.08117295,239.66,239.6,3.02]
[1738208979112,20.08117295,239.68,239.6,23.10117295]
[1738208979812,0.03,239.69,239.64,20.08117295]
[1738208980012,0.03,239.69,239.66,20.08117295]
[1738208980520,0.03,239.69,239.66,24.25357295]
[1738208980920,0.03,239.69,239.68,20.08117295]
[1738208982039,0.03,239.71,239.68,27.91127295]
[1738208982242,0.03,239.71,239.7,20.08117295]
[1738208982939,0.03,239.71,239.7,24.25297295]
[1738208984918,47.77402926,239.73,239.72,20.0]
[1738208985119,47.77402926,239.73,239.72,40.08117295]
[1738208987145,47.77402926,239.73,239.72,44.25267295]
[1738208988739,26.90282926,239.73,239.72,44.25267295]
[1738208990649,2.926e-05,239.73,239.72,44.37816295]
[1738208991231,2.926e-05,239.73,239.72,44.50365295]
[1738208992052,2.926e-05,239.73,239.72,47.48365295]
[1738208992962,2.926e-05,239.73,239.72,47.23267295]
[1738208993144,2.926e-05,239.73,239.72,4.1715]
[1738208993455,2.926e-05,239.73,239.72,7.1515]
[1738208994163,2.926e-05,239.73,239.72,27.23267295]
[1738208994736,2.926e-05,239.73,239.72,7.1515]
[1738208997656,2.926e-05,239.73,239.72,7.40248]
[1738208999056,2.926e-05,239.73,239.72,32.430344]
[1738208999364,50.6,239.96,239.75,20.0]
[1738208999539,49.6,239.96,239.79,20.0]
[1738208999740,0.549,239.94,239.8,14.5954]
[1738209000340,20.08117295,239.9,239.82,20.08117295]
[1738209000742,0.361,239.89,239.82,20.08117295]
[1738209000942,20.08117295,239.88,239.8,34.67657295]
[1738209001171,20.08117295,239.85,239.8,14.5954]
[1738209001341,20.08117295,239.92,239.83,20.08117295]
[1738209001547,20.08117295,239.94,239.86,20.08117295]
[1738209001880,20.08117295,239.94,239.87,4.1689]
[1738209002365,20.08117295,239.94,239.87,14.5912]
[1738209004747,20.08117295,239.92,239.87,4.1689]
[1738209005971,20.08117295,239.94,239.89,20.0]
[1738209006174,202.0,240.0,239.89,20.08117295]
[1738209006175,20.08117295,239.98,239.89,20.08117295]
[1738209006358,0.361,239.93,239.89,20.08117295]
[1738209006863,0.361,239.93,239.88,4.1687]
[1738209008256,20.08117295,239.9,239.85,0.063]
[1738209008459,20.08117295,239.86,239.85,4.2321]
[1738209008655,20.08117295,239.92,239.85,4.2321]
[1738209009062,20.08117295,239.94,239.85,4.2321]
[1738209009265,20.08117295,239.94,239.85,34.73637295]
[1738209009777,0.361,239.93,239.87,20.08117295]
[1738209010574,0.361,239.93,239.86,12.5200227]
[1738209010779,0.361,239.93,239.87,4.1689]
[1738209011476,0.361,239.93,239.88,12.5200227]
[1738209012579,0.361,239.93,239.89,4.1685]
[1738209014672,0.361,239.93,239.89,16.6885227]
[1738209014870,0.361,239.93,239.91,12.5200227]
[1738209015071,202.0,240.0,239.91,12.5200227]
[1738209015372,202.0,240.0,239.93,12.5200227]
[1738209015963,181.018,240.0,239.97,12.5200227]
[1738209016168,181.018,240.0,239.99,12.5200227]
[1738209016577,181.018,240.0,239.93,20.01783198]
[1738209016777,181.018,240.0,239.94,4.1677]
[1738209017182,181.018,240.0,239.94,14.5869]
[1738209017772,181.018,240.0,239.95,20.01783198]
[1738209018083,181.018,240.0,239.97,20.01783198]
[1738209018473,181.018,240.0,239.95,20.01783198]
[1738209018970,181.018,240.0,239.96,4.1673]
[1738209020378,181.048,240.0,239.96,4.1673]
[1738209021297,181.018,240.0,239.96,4.1673]
[1738209024414,181.018,240.0,239.95,0.063]
[1738209025003,181.018,240.0,239.95,4.2304]
[1738209026506,181.018,240.0,239.95,0.063]
[1738209027420,187.1847,240.0,239.95,0.063]
[1738209027583,20.0,239.96,239.95,0.063]
[1738209027781,20.0,239.96,239.85,0.063]
[1738209027782,20.0,239.96,239.85,4.2322]
[1738209028002,17.03335,239.99,239.85,24.25357699]
[1738209028383,17.03335,239.99,239.85,34.67667699]
[1738209028796,17.03335,239.99,239.86,3.1]
[1738209029004,17.03335,239.99,239.87,4.1689]
[1738209029207,17.03335,239.99,239.87,24.19027699]
[1738209031318,17.03335,239.99,239.89,20.02137699]
[1738209032317,17.03335,239.99,239.87,24.19027699]
[1738209032752,21.20025,239.99,239.87,24.19027699]
[1738209032921,20.0,239.96,239.87,0.063]
[1738209033099,20.0,239.95,239.87,0.063]
[1738209033303,4.1674,239.96,239.87,0.063]
[1738209033502,24.1674,239.96,239.87,0.063]
[1738209033829,24.1674,239.96,239.87,4.2318]
[1738209034204,20.0,239.96,239.87,4.2318]
[1738209035110,24.1675,239.96,239.87,0.063]
[1738209035419,20.0,239.94,239.87,0.063]
[1738209035627,4.1675,239.96,239.87,0.063]
[1738209035996,20.0,239.94,239.87,0.063]
[1738209036197,20.0,239.94,239.87,4.2318]
[1738209036424,20.0,239.96,239.87,4.2318]
[1738209037224,24.1674,239.96,239.87,4.2318]
[1738209037635,24.1674,239.96,239.87,0.063]
[1738209037922,20.0,239.94,239.87,0.063]
[1738209038931,4.1677,239.94,239.87,0.063]
[1738209039317,24.776884,239.93,239.87,0.063]
[1738209040138,21.0,239.9,239.87,0.063]
[1738209040434,1.0,239.88,239.87,0.063]
[1738209040641,20.0,239.9,239.87,0.063]
[1738209041142,20.0,239.88,239.87,0.063]
[1738209042428,1.0,239.88,239.87,0.063]
[1738209042824,24.776884,239.88,239.87,0.063]
[1738209043222,2.0,239.86,239.85,0.0001]
[1738209044420,6.169,239.86,239.85,0.0001]
[1738209046533,6.41998,239.86,239.85,0.0001]
[1738209048132,30.196864,239.86,239.85,0.0001]
[1738209050040,22.0,239.82,239.71,0.063]
[1738209050637,20.0,239.78,239.71,0.063]
[1738209051618,20.0,239.76,239.71,0.063]
[1738209051811,4.1706,239.77,239.71,0.063]
[1738209052238,20.0,239.78,239.71,0.063]
[1738209052438,4.1704,239.79,239.71,0.063]
[1738209053026,4.1704,239.79,239.71,12.5221515]
[1738209053341,4.1704,239.79,239.7,16.6939515]
[1738209054136,4.1704,239.79,239.71,12.5221515]
[1738209054344,4.1704,239.79,239.71,16.6937515]
[1738209055448,20.0,239.76,239.69,0.056002]
[1738209055628,20.0,239.78,239.69,0.056002]
[1738209056245,23.776884,239.77,239.69,0.056002]
[1738209056537,4.1708,239.76,239.69,0.056002]
[1738209057627,4.1697,239.82,239.74,12.5221515]
[1738209057820,10.4225,239.87,239.76,12.5221515]
[1738209058143,23.776884,239.86,239.76,12.5221515]
[1738209058520,20.0,239.83,239.74,12.5221515]
[1738209059143,24.1697,239.82,239.72,12.5221515]
[1738209060028,28.946884,239.81,239.71,12.5851515]
[1738209060228,20.0,239.78,239.71,0.063]
[1738209061642,4.1696,239.83,239.75,12.5221515]
[1738209061844,0.03,239.87,239.8,12.5221515]
[1738209062052,0.03,239.87,239.81,4.1699]
[1738209062356,0.03,239.87,239.8,12.5221515]
[1738209063523,0.03,239.87,239.82,12.5221515]
[1738209065433,0.03,239.87,239.82,16.6917515]
[1738209065843,0.03,239.87,239.78,20.2455515]
[1738209067049,0.03,239.87,239.78,7.7234]
[1738209067230,20.0,239.84,239.73,1.6184]
[1738209067640,21.0,239.84,239.73,1.6184]
[1738209067833,20.0,239.84,239.73,1.6184]
[1738209069155,4.1696,239.83,239.73,1.6184]
[1738209069750,20.0,239.82,239.73,1.6184]
[1738209070426,4.1696,239.83,239.73,1.6184]
[1738209070629,20.0,239.82,239.73,1.6184]
[1738209071257,20.0,239.84,239.73,1.6184]
[1738209072132,4.169,239.86,239.77,12.5221515]
[1738209072327,0.03,239.87,239.79,12.5221515]
[1738209073034,24.199,239.87,239.77,12.5221515]
[1738209073223,4.199,239.87,239.75,16.6930515]
[1738209073866,0.03,239.87,239.77,12.5221515]
[1738209074967,4.1989,239.87,239.77,16.6927515]
[1738209075157,0.03,239.87,239.79,12.5221515]
[1738209076264,0.03,239.87,239.77,16.6927515]
[1738209077159,0.03,239.87,239.77,12.5221515]
[1738209078976,0.03,239.87,239.77,16.6927515]
[1738209079575,0.03,239.87,239.79,12.5221515]
[1738209080076,0.03,239.87,239.81,12.5221515]
[1738209081156,0.03,239.87,239.81,16.6919515]
[1738209081572,0.03,239.87,239.85,12.5221515]
[1738209081954,17.06335,239.99,239.85,12.5221515]
[1738209082182,0.03,239.99,239.97,12.5221515]
[1738209082792,0.03,239.99,239.96,6.6197]
[1738209083355,0.03,239.99,239.95,3.02]
[1738209084490,0.03,239.99,239.95,15.5421515]
[1738209085887,0.03,239.99,239.95,3.02]
[1738209088484,0.03,239.99,239.95,19.7095515]
[1738209088680,0.03,239.99,239.95,15.5421515]
[1738209089095,0.03,239.99,239.94,1.6389]
[1738209089481,185.2147,240.0,239.99,0.12549]
[1738209089482,181.048,240.0,239.99,0.12549]
[1738209089796,156.88214791,240.0,239.99,12.6476415]
[1738209090171,156.88214791,240.0,239.99,12.5221515]
[1738209090368,135.23044791,240.0,239.99,12.5221515]
[1738209090675,133.56384791,240.0,239.99,36.8009955]
[1738209091492,103.97844791,240.0,239.99,54.489947]
[1738209091690,59.50404791,240.0,239.99,54.489947]
[1738209091897,59.50404791,240.0,239.99,41.9677955]
[1738209092396,36.53051882,240.16,240.08,0.37647]
[1738209092600,36.53051882,240.16,240.1,12.5221515]
[1738209093711,36.53051882,240.16,240.11,4.1647]
[1738209094194,30.0,240.16,240.1,12.5221515]
[1738209094373,0.151,240.15,240.11,3.06]
[1738209094817,0.151,240.15,240.1,3.06]
[1738209095317,0.151,240.15,240.11,12.5221515]
[1738209095716,0.151,240.15,240.12,4.1645]
[1738209096006,0.151,240.15,240.13,12.5221515]
[1738209096175,0.151,240.15,240.11,12.5221515]
[1738209096495,0.151,240.15,240.1,19.7470515]
[1738209097192,0.151,240.15,240.11,12.5221515]
[1738209097391,0.151,240.15,240.11,3.06]
[1738209098701,0.151,240.15,240.11,7.2246]
[1738209098899,0.151,240.15,240.11,19.7467515]
[1738209102005,0.151,240.15,240.13,12.5221515]
[1738209102605,0.151,240.15,240.13,4.1644]
[1738209103010,0.151,240.15,240.14,12.5221515]
[1738209103808,0.151,240.15,240.13,16.6865515]
[1738209104309,0.151,240.15,240.13,4.1644]
[1738209105004,0.151,240.15,240.11,19.7467515]
[1738209106582,0.151,240.15,240.13,12.5221515]
[1738209106788,0.151,240.15,240.12,4.1644]
[1738209106789,0.151,240.15,240.14,12.5221515]
[1738209107792,0.151,240.15,240.14,16.6863515]
[1738209114395,0.0001,240.23,240.22,1.25098]
[1738209114628,0.03,240.41,240.29,0.25098]
[1738209114916,0.03,240.41,240.4,12.5221515]
[1738209114917,1.65111305,240.41,240.4,12.5221515]
[1738209115226,0.03,240.41,240.39,12.1041515]
[1738209115441,0.215,240.52,240.4,13.14597667]
[1738209115613,0.215,240.52,240.5,12.5221515]
[1738209116299,0.215,240.52,240.44,3.12]
[1738209116300,0.215,240.52,240.48,12.5221515]
[1738209116497,0.215,240.52,240.44,3.12]
[1738209116498,0.215,240.52,240.46,12.5221515]
[1738209116703,4.3727,240.52,240.44,15.6421515]
[1738209117001,0.215,240.52,240.48,12.5221515]
[1738209117200,0.215,240.52,240.44,3.12]
[1738209117430,0.215,240.52,240.5,12.5221515]
[1738209117611,6.53051882,240.58,240.53,1.0]
[1738209117802,13.06103765,240.6,240.57,12.5221515]
[1738209118127,39.18311295,240.67,240.63,0.25098]
[1738209118427,90.57588946,240.83,240.66,12.5221515]
[1738209118608,90.57588946,240.83,240.78,12.5221515]
[1738209118920,90.57588946,240.83,240.82,12.6476415]
[1738209119097,90.57588946,240.83,240.8,12.5221515]
[1738209119299,90.57588946,240.83,240.82,12.5221515]
[1738209119519,90.57588946,240.83,240.82,12.6476415]
[1738209119822,90.57588946,240.83,240.75,20.24074469]
[1738209120121,1.0,240.85,240.8,0.22151538]
[1738209120348,1.0,240.87,240.69,12.5221515]
[1738209120499,4.1517,240.86,240.72,19.8872991]
[1738209120705,0.03,240.83,240.72,19.8872991]
[1738209120916,0.03,240.83,240.67,3.18]
[1738209121117,1.0,240.82,240.68,20.27034899]
[1738209121413,20.0,240.78,240.73,65.66304001]
[1738209121815,2.5281,240.75,240.62,20.97266149]
[1738209122025,1.5281,240.75,240.62,20.97266149]
[1738209122334,1.5281,240.75,240.61,20.09936368]
[1738209122499,4.1538,240.74,240.6,23.45482044]
[1738209122705,4.1538,240.74,240.6,23.0872991]
[1738209122904,1.5281,240.75,240.64,19.8872991]
[1738209123136,1.5281,240.75,240.66,19.8872991]
[1738209123308,5.6818,240.75,240.61,40.63601585]
[1738209123512,1.0,240.83,240.71,1.0]
[1738209123709,1.0,240.83,240.72,0.9]
[1738209123907,1.0,240.83,240.73,0.72631959]
[1738209124109,39.80908036,240.74,240.7,0.75526826]
[1738209124310,36.88069908,240.84,240.73,1.0]
[1738209124543,19.90454018,240.74,240.73,2.0]
[1738209125224,19.90454018,240.74,240.66,1.0]
[1738209125437,19.90454018,240.69,240.67,2.0]
[1738209125621,19.90454018,240.71,240.7,1.0]
[1738209125823,19.90454018,240.77,240.75,1.0]
[1738209126019,19.90454018,240.79,240.76,1.0]
[1738209126412,19.90454018,240.78,240.76,1.0]
[1738209127321,19.90454018,240.78,240.73,3.2]
[1738209127322,4.153,240.79,240.78,1.0]
[1738209127640,19.90454018,240.79,240.77,1.0]
[1738209127953,19.90454018,240.78,240.76,1.0]
[1738209128135,1.57476844,240.9,240.76,1.0]
[1738209128136,19.90454018,240.8,240.76,1.0]
[1738209128337,6.24548465,240.8,240.78,1.0]
[1738209128526,1.77673872,240.8,240.78,1.0]
[1738209128726,5.92953872,240.8,240.74,1.0]
[1738209128957,20.0,240.86,240.74,1.0]
[1738209129135,1.57476844,240.9,240.73,3.2]
[1738209129136,19.90454018,240.78,240.73,3.2]
[1738209129337,19.90454018,240.78,240.75,1.0]
[1738209129837,19.90454018,240.8,240.75,1.0]
[1738209130031,1.57476844,240.9,240.77,1.0]
[1738209130032,19.90454018,240.82,240.77,1.0]
[1738209130254,19.90454018,240.84,240.8,1.0]